bitfinex-derivatives/quotes_ETHF0:USTF0_20210403
["timestamp","ask_amount","ask_price","bid_price","bid_amount"]
[1617442322981,27.43685,2095.4,2095.1,8.15764251]
[1617442323381,27.43685,2095.4,2095.3,7.07558086]
[1617442323680,27.43685,2095.4,2094.8,8.16413176]
[1617442323882,27.43685,2095.4,2094.2,9.25678886]
[1617442324182,27.43685,2095.4,2094.1,9.25843888]
[1617442324583,27.43685,2095.4,2095.3,5.99115628]
[1617442324783,27.43685,2095.4,2095.3,5.628e-05]
[1617442325083,27.43685,2095.4,2094.0,9.25913881]
[1617442325284,2.90695,2094.1,2094.0,9.25913881]
[1617442325487,5.27585,2094.1,2094.0,9.25913881]
[1617442325784,5.27585,2094.1,2093.9,9.26117059]
[1617442327188,5.27585,2094.1,2093.8,9.26158524]
[1617442327686,63.05125,2094.1,2093.8,9.26158524]
[1617442328089,63.05125,2094.1,2093.9,0.14017875]
[1617442330289,63.05125,2094.1,2093.9,9.39388419]
[1617442330888,63.05125,2094.1,2094.0,0.14018223]
[1617442332490,63.05125,2094.1,2094.0,9.38479722]
[1617442334595,63.05125,2094.1,2094.0,0.14018223]
[1617442334997,63.05125,2094.1,2093.8,9.23884075]
[1617442335297,63.05125,2094.1,2094.0,0.14018595]
[1617442335497,63.05125,2094.1,2093.9,0.14018897]
[1617442336999,63.05125,2094.1,2093.8,0.14019478]
[1617442337199,63.05125,2094.1,2094.0,8.2892554]
[1617442337499,63.05125,2094.1,2094.0,8.14905998]
[1617442337999,63.05125,2094.1,2094.0,8.28925397]
[1617442338801,63.05125,2094.1,2094.0,0.14019399]
[1617442342007,63.05125,2094.1,2094.0,8.29254408]
[1617442342408,63.05125,2094.1,2094.0,0.14019399]
[1617442345611,63.05125,2094.1,2093.9,8.28907349]
[1617442345911,63.05125,2094.1,2094.0,0.14020367]
[1617442346312,63.05125,2094.1,2093.7,8.14639578]
[1617442347615,2.90695,2093.8,2093.7,8.14639578]
[1617442348818,2.90695,2093.8,2093.6,8.14355368]
[1617442349518,2.90695,2093.8,2093.7,8.14238608]
[1617442349916,2.90695,2093.8,2093.6,8.14512745]
[1617442352617,2.90695,2093.8,2093.5,2.90695]
[1617442353919,2.90695,2093.8,2093.6,0.14020374]
[1617442354617,2.90695,2093.8,2093.5,2.90695]
[1617442355117,2.90695,2093.8,2093.6,0.14020441]
[1617442356221,2.90695,2093.8,2093.5,2.90695]
[1617442356621,2.90695,2093.8,2093.5,3.85485]
[1617442356825,2.90695,2093.8,2093.5,2.90695]
[1617442357023,2.90695,2093.8,2093.6,0.14020375]
[1617442368031,2.90695,2093.8,2093.6,8.20708286]
[1617442368230,2.90695,2093.8,2093.7,0.14019351]
[1617442374238,2.90695,2093.8,2093.6,0.14020807]
[1617442374436,4.80065,2093.8,2093.6,0.14020807]
[1617442375442,4.80065,2093.8,2093.7,6.97881036]
[1617442375843,4.80065,2093.8,2093.7,7.11901995]
[1617442377742,4.80065,2093.8,2093.7,0.14020959]
[1617442378343,4.80065,2093.8,2093.6,0.1402095]
[1617442380747,4.80065,2093.8,2093.7,6.9232606]
[1617442381146,4.80065,2093.8,2093.7,7.06347061]
[1617442383051,4.80065,2093.8,2093.7,0.14021001]
[1617442383654,4.80065,2093.8,2093.4,7.97188101]
[1617442383655,4.80065,2093.8,2093.5,0.14020948]
[1617442385053,4.80065,2093.8,2093.4,8.13290142]
[1617442385353,4.80065,2093.8,2093.6,0.14021055]
[1617442385554,4.80065,2093.8,2093.5,0.14020941]
[1617442386553,4.80065,2093.8,2093.5,8.14729576]
[1617442387253,4.80065,2093.8,2093.6,0.14020762]
[1617442388055,4.80065,2093.8,2093.6,8.14612298]
[1617442388554,4.80065,2093.8,2093.7,0.14020987]
[1617442389455,4.80065,2093.8,2093.6,0.14020962]
[1617442389653,4.80065,2093.8,2093.7,0.14020943]
[1617442390154,4.80065,2093.8,2093.6,0.14021037]
[1617442390355,4.80065,2093.8,2093.7,0.14021043]
[1617442390756,4.80065,2093.8,2093.6,0.14021103]
[1617442392056,4.80065,2093.8,2093.6,8.16771286]
[1617442392655,4.80065,2093.8,2093.7,0.1402118]
[1617442393559,4.80065,2093.8,2093.6,0.1402145]
[1617442393757,4.80065,2093.8,2093.7,0.14021474]
[1617442394258,4.80065,2093.8,2093.6,0.14021449]
[1617442394458,4.80065,2093.8,2093.6,8.17160222]
[1617442394658,4.80065,2093.8,2093.6,0.14021449]
[1617442394858,4.80065,2093.8,2093.7,0.14021593]
[1617442395259,4.80065,2093.8,2093.6,0.14021573]
[1617442395460,4.80065,2093.8,2093.7,0.14021462]
[1617442395860,4.80065,2093.8,2093.6,0.14021496]
[1617442397463,4.80065,2093.8,2093.7,8.03999346]
[1617442397663,2.90695,2093.8,2093.7,8.03999346]
[1617442398067,2.90695,2093.8,2093.7,8.18020643]
[1617442398565,2.3784,2096.0,2093.7,8.18020643]
[1617442398863,2.3784,2096.0,2093.7,2.26021297]
[1617442398864,22.2361,2095.4,2093.7,2.26021297]
[1617442399165,22.2361,2095.4,2095.2,4.80547775]
[1617442399363,22.2361,2095.4,2095.2,7.11637775]
[1617442399663,22.2361,2095.4,2095.3,4.94484872]
[1617442399864,22.2361,2095.4,2095.3,0.14017614]
[1617442400063,25.14305,2095.4,2095.3,0.14017614]
[1617442400264,25.14305,2095.4,2095.3,6.0083406]
[1617442400564,25.14305,2095.4,2095.3,0.14017614]
[1617442406670,25.14305,2095.4,2095.3,7.08427728]
[1617442406972,25.14305,2095.4,2095.3,0.14017614]
[1617442407472,25.14305,2095.4,2095.3,7.08444567]
[1617442407973,25.14305,2095.4,2095.3,0.14017614]
[1617442408573,25.14305,2095.4,2095.0,9.10758141]
[1617442408574,25.14305,2095.4,2095.1,0.14014367]
[1617442408772,25.14305,2095.4,2095.0,9.10758141]
[1617442408773,25.14305,2095.4,2095.3,0.14014391]
[1617442408972,25.14305,2095.4,2095.3,1.74094391]
[1617442409173,25.14305,2095.4,2095.3,1.6008]
[1617442409474,25.14305,2095.4,2095.3,1.74092467]
[1617442409673,25.14305,2095.4,2095.3,10.84043863]
[1617442410174,25.14305,2095.4,2095.3,13.74738863]
[1617442410374,25.14305,2095.4,2095.3,4.64787467]
[1617442411775,25.14305,2095.4,2095.3,1.74092467]
[1617442412376,25.14305,2095.4,2095.3,0.14012467]
[1617442412775,25.14305,2095.4,2095.1,0.14011465]
[1617442412975,25.14305,2095.4,2093.3,11.23618975]
[1617442412976,27.38175,2095.4,2095.3,0.14013219]
[1617442413776,27.38175,2095.4,2095.2,6.95125463]
[1617442413975,27.38175,2095.4,2095.0,6.94948221]
[1617442414174,2.90695,2095.1,2095.0,6.94948221]
[1617442414577,2.90695,2095.1,2095.0,0.14016509]
[1617442415476,2.90695,2095.1,2094.9,7.09940752]
[1617442415778,2.90695,2095.1,2095.0,0.14017226]
[1617442416078,2.90695,2095.1,2094.9,0.14017325]
[1617442417080,2.90695,2095.1,2094.7,6.95752804]
[1617442417380,68.22235,2095.1,2095.0,5.88293702]
[1617442418984,68.22235,2095.1,2094.7,6.93839896]
[1617442419483,68.22235,2095.1,2094.8,0.14017161]
[1617442419983,68.22235,2095.1,2094.8,7.068514]
[1617442420283,68.22235,2095.1,2094.9,0.14016941]
[1617442421084,68.22235,2095.1,2094.9,7.06239776]
[1617442421491,68.22235,2095.1,2094.8,6.91585793]
[1617442421792,68.22235,2095.1,2094.9,0.14016381]
[1617442422495,2.90695,2095.1,2094.9,0.14016381]
[1617442424196,2.90695,2095.1,2094.8,0.14017135]
[1617442424397,2.90695,2095.1,2094.6,6.89270265]
[1617442424597,2.90695,2095.1,2095.0,5.83387917]
[1617442424999,2.90695,2095.1,2095.0,0.14018049]
[1617442425397,2.90695,2095.1,2095.0,5.83541009]
[1617442425697,2.90695,2095.1,2095.0,5.97559475]
[1617442427801,2.90695,2095.1,2095.0,0.14018466]
[1617442428300,2.90695,2095.1,2094.6,6.89314147]
[1617442428301,2.90695,2095.1,2094.7,0.1401788]
[1617442428500,2.90695,2095.1,2094.6,6.89314147]
[1617442428900,2.90695,2095.1,2095.0,5.85129069]
[1617442432005,2.90695,2095.1,2094.9,5.8586803]
[1617442432408,2.90695,2095.1,2095.0,5.85784528]
[1617442434409,2.90695,2095.1,2094.6,6.91936774]
[1617442434707,2.90695,2095.1,2094.7,0.14017679]
[1617442435309,2.90695,2095.1,2095.0,5.85366905]
[1617442435709,2.90695,2095.1,2094.9,5.85510019]
[1617442436210,2.90695,2095.1,2095.0,4.78986328]
[1617442437016,2.90695,2095.1,2095.0,5.85396501]
[1617442437315,2.90695,2095.1,2094.6,6.91832229]
[1617442437515,2.90695,2095.1,2095.0,0.1401804]
[1617442437716,2.90695,2095.1,2094.7,7.05878687]
[1617442438317,2.90695,2095.1,2094.8,0.14017788]
[1617442439019,2.90695,2095.1,2094.8,7.06660177]
[1617442439318,2.90695,2095.1,2094.9,0.14017551]
[1617442439519,3.87065,2095.1,2094.9,0.14017551]
[1617442440618,2.90695,2095.1,2094.9,0.14017551]
[1617442444623,2.90695,2095.1,2095.0,5.858553]
[1617442445123,2.90695,2095.1,2095.0,5.99873911]
[1617442445423,2.90695,2095.1,2095.0,5.858553]
[1617442445923,2.90695,2095.1,2094.6,6.92374445]
[1617442445924,2.90695,2095.1,2094.9,5.8524539]
[1617442446726,2.90695,2095.1,2095.0,4.78999405]
[1617442447224,2.90695,2095.1,2094.9,4.79001933]
[1617442447525,2.90695,2095.1,2094.8,4.78580416]
[1617442448325,2.90695,2095.1,2094.9,4.78541342]
[1617442449129,2.90695,2095.1,2095.0,4.78430361]
[1617442449825,2.90695,2095.1,2094.9,4.78512618]
[1617442450926,2.90695,2095.1,2094.8,4.78602638]
[1617442451227,2.90695,2095.1,2094.9,4.78526727]
[1617442452128,2.90695,2095.1,2095.0,4.78293387]
[1617442452728,2.90695,2095.1,2095.0,0.14019454]
[1617442453029,2.90695,2095.1,2095.0,5.98380794]
[1617442453730,2.90695,2095.1,2095.0,0.14019454]
[1617442454829,2.90695,2095.1,2094.9,5.84195392]
[1617442455432,2.90695,2095.1,2095.0,4.78452392]
[1617442457336,2.90695,2095.1,2094.9,4.7811305]
[1617442458039,75.7165,2094.9,2094.8,4.78170145]
[1617442464045,75.7165,2094.9,2094.7,4.76437363]
[1617442464645,2.90695,2094.8,2094.7,4.76437363]
[1617442467749,2.90695,2094.8,2094.6,4.74998778]
[1617442469953,2.90695,2094.8,2094.5,4.73506654]
[1617442470857,2.90695,2094.8,2094.6,4.73194768]
[1617442471254,2.90695,2094.8,2094.5,4.72785558]
[1617442472455,2.90695,2094.8,2094.6,4.8658313]
[1617442472656,2.90695,2094.8,2094.7,0.14021573]
[1617442476259,2.90695,2094.8,2094.6,0.14021903]
[1617442477260,2.90695,2094.8,2094.6,4.87966762]
[1617442477560,2.90695,2094.8,2094.7,0.14022063]
[1617442477961,2.90695,2094.8,2094.6,0.14022035]
[1617442478261,2.90695,2094.8,2094.7,0.14022013]
[1617442478761,2.90695,2094.8,2094.6,4.88672958]
[1617442479163,2.90695,2094.8,2094.7,0.14022021]
[1617442480364,2.90695,2094.8,2094.7,4.89546617]
[1617442480766,2.90695,2094.8,2094.7,0.14022021]
[1617442481066,2.90695,2094.8,2094.7,4.89360869]
[1617442484469,2.90695,2094.8,2094.7,0.14022021]
[1617442490979,2.90695,2094.8,2094.5,4.73588705]
[1617442490980,2.90695,2094.8,2094.6,0.14021581]
[1617442492681,2.90695,2094.8,2094.6,4.87142452]
[1617442493181,2.90695,2094.8,2094.7,0.14021769]
[1617442497587,2.90695,2094.8,2094.7,4.87929603]
[1617442497887,2.90695,2094.8,2094.7,0.14021769]
[1617442498687,2.90695,2094.8,2094.7,4.88048142]
[1617442502896,4.73815,2094.8,2094.7,4.88048142]
[1617442503098,4.73815,2094.8,2094.7,0.14021769]
[1617442506503,4.73815,2094.8,2094.6,0.1402205]
[1617442507306,4.73815,2094.8,2094.6,6.98109909]
[1617442507503,2.90695,2094.8,2094.6,6.98109909]
[1617442507804,2.90695,2094.8,2094.7,0.14021745]
[1617442511410,2.90695,2094.8,2094.6,0.14022]
[1617442513512,2.90695,2094.8,2094.6,6.96714714]
[1617442513813,2.90695,2094.8,2094.6,0.14022]
[1617442514013,2.90695,2094.8,2094.7,0.14021977]
[1617442514310,2.90695,2094.8,2094.5,6.82724122]
[1617442514311,2.90695,2094.8,2094.6,0.14022012]
[1617442515015,2.90695,2094.8,2094.7,6.83679397]
[1617442515614,2.90695,2094.8,2094.7,6.97701043]
[1617442518613,2.90695,2094.8,2094.7,0.14021646]
[1617442524628,2.90695,2094.8,2094.7,6.93901096]
[1617442527025,2.90695,2094.8,2094.7,0.14021646]
[1617442527425,2.90695,2094.8,2094.5,0.14021519]
[1617442527627,2.90695,2094.8,2094.5,8.00630149]
[1617442528030,2.90695,2094.8,2094.6,0.14021374]
[1617442533734,2.90695,2094.8,2094.5,0.14021702]
[1617442534034,2.90695,2094.8,2094.7,0.14021827]
[1617442534234,2.90695,2094.8,2094.6,0.14021846]
[1617442534535,2.90695,2094.8,2094.5,0.14021925]
[1617442537637,2.90695,2094.8,2094.5,8.03868717]
[1617442538038,2.90695,2094.8,2094.6,0.14022036]
[1617442544747,2.90695,2094.8,2094.6,8.00319484]
[1617442545145,2.90695,2094.8,2094.7,0.14021302]
[1617442546146,2.90695,2094.8,2094.6,8.00738993]
[1617442546546,2.90695,2094.8,2094.7,0.14021211]
[1617442547547,2.90695,2094.8,2094.6,0.14021114]
[1617442547749,2.90695,2094.8,2094.6,7.99501542]
[1617442548250,2.90695,2094.8,2094.7,0.14021203]
[1617442548548,2.90695,2094.8,2094.6,0.14021203]
[1617442549849,2.90695,2094.8,2094.6,7.98453824]
[1617442550550,2.90695,2094.8,2094.7,0.14021197]
[1617442552251,2.90695,2094.8,2094.6,0.1402124]
[1617442552952,2.90695,2094.8,2094.6,7.98214966]
[1617442553154,0.9559,2095.2,2094.6,7.98214966]
[1617442553354,0.9559,2095.2,2094.7,0.14021183]
[1617442553554,2.90695,2094.8,2094.7,0.14021183]
[1617442553955,2.90695,2094.8,2094.6,7.97862942]
[1617442554156,2.90695,2094.8,2094.7,0.14021026]
[1617442554955,2.90695,2094.8,2094.6,0.14021079]
[1617442555156,2.90695,2094.8,2094.7,0.14020924]
[1617442555456,2.90695,2094.8,2094.6,0.14020958]
[1617442555656,2.90695,2094.8,2094.6,7.9733389]
[1617442555956,2.90695,2094.8,2094.6,0.14020958]
[1617442556156,2.90695,2094.8,2094.7,0.14020986]
[1617442556856,2.90695,2094.8,2094.6,0.14021123]
[1617442557356,2.90695,2094.8,2094.7,0.14021049]
[1617442558057,2.90695,2094.8,2094.6,0.14021087]
[1617442558557,2.90695,2094.8,2094.7,0.14021159]
[1617442558959,2.90695,2094.8,2094.6,0.14021152]
[1617442566160,2.90695,2094.8,2094.5,0.1402158]
[1617442566361,69.90655,2094.8,2094.5,0.1402158]
[1617442566863,69.90655,2094.8,2094.5,7.97836669]
[1617442567262,69.90655,2094.8,2094.6,0.14021611]
[1617442573667,69.90655,2094.8,2094.6,2.41671611]
[1617442574271,69.90655,2094.8,2094.7,0.14021261]
[1617442581981,69.90655,2094.8,2094.7,2.24081261]
[1617442595596,2.90695,2094.8,2094.7,2.24081261]
[1617442596397,2.90695,2094.8,2094.7,0.14021261]
[1617442601302,2.89211118,2094.8,2094.7,0.14021261]
[1617442604307,2.89211118,2094.8,2094.6,8.04250512]
[1617442604507,2.89211118,2094.8,2094.7,0.14022148]
[1617442604906,2.89211118,2094.8,2094.6,0.14022142]
[1617442605107,2.89211118,2094.8,2094.6,8.04291745]
[1617442605408,2.89211118,2094.8,2094.6,8.02033615]
[1617442605709,2.89211118,2094.8,2094.7,0.14022051]
[1617442613311,4.98931118,2094.8,2094.6,5.51841654]
[1617442613512,4.98931118,2094.8,2094.7,6.89594744]
[1617442613812,4.98931118,2094.8,2094.7,5.89094744]
[1617442614017,4.98931118,2094.8,2093.8,9.0149225]
[1617442614216,2.90695,2093.9,2093.8,9.0149225]
[1617442614619,2.90695,2093.9,2093.7,9.01527897]
[1617442615319,2.90695,2093.9,2093.6,9.0095938]
[1617442615819,2.90695,2093.9,2093.7,9.00854702]
[1617442617121,2.90695,2093.9,2093.5,8.9870961]
[1617442618220,2.90695,2093.6,2093.4,8.99291866]
[1617442618922,2.90695,2093.6,2093.5,0.14025212]
[1617442619323,2.90695,2093.6,2093.5,9.13078611]
[1617442619722,2.90695,2093.6,2093.5,0.14025212]
[1617442620023,2.90695,2093.6,2093.3,0.140243]
[1617442621726,2.90695,2093.6,2093.5,8.99363054]
[1617442622126,2.90695,2093.6,2093.5,0.14025352]
[1617442624628,2.90695,2093.6,2093.5,9.13232195]
[1617442624928,2.90695,2093.6,2093.5,0.14025352]
[1617442625527,2.90695,2093.6,2093.5,9.1347673]
[1617442628931,2.90695,2093.6,2093.5,0.14025352]
[1617442629334,2.90695,2093.6,2093.3,0.14024702]
[1617442629732,2.90695,2093.6,2093.2,11.82494956]
[1617442629733,2.90695,2093.6,2093.5,0.14024512]
[1617442630032,2.90695,2093.6,2093.4,0.14023934]
[1617442630231,2.90695,2093.6,2093.5,0.14023674]
[1617442630532,2.90695,2093.6,2093.4,3.04718593]
[1617442630933,2.90695,2093.6,2093.5,0.14023531]
[1617442632236,2.90695,2093.6,2093.5,10.17698388]
[1617442632535,2.90695,2093.6,2093.5,0.14023531]
[1617442633237,2.90695,2093.6,2093.5,10.18610583]
[1617442633435,2.90695,2093.6,2093.5,10.04587052]
[1617442634938,2.90695,2093.6,2093.4,12.9513293]
[1617442635843,2.90695,2093.6,2093.5,10.06011478]
[1617442636644,64.8656,2095.2,2093.5,10.06011478]
[1617442637244,64.8656,2095.2,2093.4,2.90695]
[1617442637245,64.8656,2095.2,2094.9,6.88442196]
[1617442637945,64.8656,2095.2,2095.0,0.14021588]
[1617442638347,2.90695,2095.1,2095.0,0.14021588]
[1617442638647,2.90695,2095.1,2095.0,7.02405017]
[1617442638848,2.90695,2095.1,2095.0,0.14021588]
[1617442639649,2.90695,2095.1,2094.8,0.14020488]
[1617442639946,2.90695,2095.1,2095.0,0.14020597]
[1617442640150,2.90695,2095.1,2094.9,0.14020571]
[1617442640348,2.90695,2095.1,2095.0,7.0325682]
[1617442641552,2.90695,2095.1,2095.0,0.14020307]
[1617442641950,2.90695,2095.1,2094.8,8.08585451]
[1617442642351,2.90695,2095.1,2094.9,0.1401943]
[1617442643952,2.90695,2095.1,2094.9,8.08544314]
[1617442644353,2.90695,2095.1,2095.0,0.14019399]
[1617442644955,2.90695,2095.1,2094.9,0.14019045]
[1617442648356,2.90695,2095.1,2094.8,7.94499838]
[1617442648755,2.90695,2095.1,2094.9,0.14018891]
[1617442649456,2.90695,2095.1,2094.9,8.0901694]
[1617442650057,2.90695,2095.1,2095.0,0.14018493]
[1617442651156,2.90695,2095.1,2095.0,8.09588568]
[1617442651957,2.90695,2095.1,2095.0,0.14018493]
[1617442652258,2.90695,2095.1,2095.0,8.06697889]
[1617442652556,2.90695,2095.1,2095.0,10.97392889]
[1617442652759,2.90695,2095.1,2095.0,3.04713493]
[1617442657863,2.90695,2095.1,2095.0,0.14018493]
[1617442658563,2.90695,2095.1,2094.8,3.04707977]
[1617442658764,2.90695,2095.1,2095.0,0.14013037]
[1617442658964,2.90695,2095.1,2095.0,7.92312105]
[1617442659263,2.90695,2095.1,2095.0,8.0632538]
[1617442661364,2.90695,2095.1,2095.0,0.14013275]
[1617442662166,2.90695,2095.1,2094.8,0.14014908]
[1617442662767,2.90695,2095.1,2094.9,6.86773615]
[1617442663267,2.90695,2095.1,2095.0,0.14014376]
[1617442664166,2.90695,2095.1,2095.0,7.00174263]
[1617442664567,2.90695,2095.1,2095.0,9.90869263]
[1617442664968,2.90695,2095.1,2095.0,7.00174263]
[1617442665370,2.90695,2095.1,2095.0,0.14014376]
[1617442666370,2.90695,2095.1,2094.9,6.98754326]
[1617442666571,2.90695,2095.1,2094.9,0.14014087]
[1617442666872,2.90695,2095.1,2095.0,0.14014262]
[1617442667269,2.90695,2095.1,2094.8,9.75475515]
[1617442667569,2.90695,2095.1,2094.8,2.90695]
[1617442667770,2.90695,2095.1,2094.9,0.14014733]
[1617442670371,2.90695,2095.1,2094.8,2.90695]
[1617442670771,2.90695,2095.1,2094.9,0.14014561]
[1617442671275,2.90695,2095.1,2094.9,6.99225823]
[1617442671672,2.90695,2095.1,2095.0,0.14013404]
[1617442671873,2.90695,2095.1,2095.0,6.99086733]
[1617442672273,2.90695,2095.1,2095.0,0.14013404]
[1617442672573,2.90695,2095.1,2094.9,0.14012845]
[1617442673373,2.90695,2095.1,2094.9,6.99108499]
[1617442673975,2.90695,2095.1,2095.0,0.14013333]
[1617442674274,2.90695,2095.1,2094.8,2.90695]
[1617442674475,2.90695,2095.1,2095.0,5.7924386]
[1617442675176,2.90695,2095.1,2094.8,2.90695]
[1617442675577,2.90695,2095.1,2094.9,0.14013116]
[1617442676178,2.90695,2095.1,2095.0,6.84212366]
[1617442676478,2.90695,2095.1,2095.0,6.9822438]
[1617442677379,2.90695,2095.1,2095.0,0.14012014]
[1617442677878,2.90695,2095.1,2094.9,0.14012103]
[1617442678978,2.90695,2095.1,2094.9,8.04457277]
[1617442679479,2.90695,2095.1,2095.0,0.14011862]
[1617442680280,2.90695,2095.1,2094.9,0.14012003]
[1617442680779,2.90695,2095.1,2094.9,8.04471981]
[1617442681080,2.90695,2095.1,2094.9,0.14012003]
[1617442681281,2.90695,2095.1,2095.0,0.14012021]
[1617442681682,2.90695,2095.1,2094.9,0.14012157]
[1617442682083,22.2361,2095.4,2094.9,0.14012157]
[1617442682684,22.2361,2095.4,2095.3,2.90695]
[1617442683285,22.2361,2095.4,2095.3,3.04707272]
[1617442684786,22.2361,2095.4,2095.3,0.14012272]
[1617442685286,22.2361,2095.4,2095.2,0.14012899]
[1617442685486,22.2361,2095.4,2095.3,0.14012386]
[1617442685687,22.2361,2095.4,2095.1,6.99610359]
[1617442686088,22.2361,2095.4,2095.2,0.1401229]
[1617442686588,22.2361,2095.4,2095.3,2.90695]
[1617442687087,22.2361,2095.4,2095.3,3.04707399]
[1617442688294,22.2361,2095.4,2095.3,0.14012399]
[1617442688693,22.2361,2095.4,2093.1,10.55164463]
[1617442688694,22.2361,2095.4,2095.2,5.94577209]
[1617442688894,24.7206,2095.4,2095.2,5.94577209]
[1617442689194,24.7206,2095.4,2095.3,4.89155657]
[1617442689594,24.7206,2095.4,2095.3,5.95058314]
[1617442689794,24.7206,2095.4,2095.3,0.14013786]
[1617442690296,24.7206,2095.4,2095.3,4.89696615]
[1617442690896,24.7206,2095.4,2095.3,0.14013786]
[1617442693807,24.7206,2095.4,2095.2,0.14016892]
[1617442696108,24.7206,2095.4,2094.9,0.14018847]
[1617442696308,24.7206,2095.4,2095.3,0.1401845]
[1617442696710,24.7206,2095.4,2094.9,0.14018193]
[1617442697109,24.7206,2095.4,2095.3,0.14018475]
[1617442697309,24.7206,2095.4,2095.0,0.14018413]
[1617442697609,24.7206,2095.4,2094.8,4.90106479]
[1617442698012,24.7206,2095.4,2094.9,0.14018447]
[1617442698713,2.90695,2095.0,2094.9,0.14018447]
[1617442699215,2.90695,2095.0,2094.8,4.90036693]
[1617442699614,2.90695,2095.0,2094.9,0.14018553]
[1617442700218,2.90695,2095.0,2094.9,4.90425718]
[1617442700619,2.90695,2095.0,2094.9,0.14018553]
[1617442702421,2.90695,2095.0,2094.9,4.90422852]
[1617442704123,2.90695,2095.0,2094.9,0.14018553]
[1617442705624,2.90695,2095.0,2094.9,5.95941927]
[1617442707029,2.90695,2095.0,2094.9,0.14018553]
[1617442707230,2.90695,2095.0,2094.7,0.14017609]
[1617442708127,2.90695,2095.0,2094.9,5.83002282]
[1617442708430,2.90695,2095.0,2094.8,5.8314366]
[1617442708628,2.90695,2095.0,2094.9,0.14019091]
[1617442709128,2.90695,2095.0,2094.9,5.97093077]
[1617442709428,2.90695,2095.0,2094.9,0.14019091]
[1617442710230,2.90695,2095.0,2094.9,4.91423095]
[1617442710530,2.90695,2095.0,2094.9,0.14019091]
[1617442711130,2.90695,2095.0,2094.8,5.97413491]
[1617442711330,5.37945,2095.0,2094.9,4.774431]
[1617442711530,5.37945,2095.0,2094.9,4.91463482]
[1617442712831,5.37945,2095.0,2094.9,0.14020382]
[1617442713032,5.37945,2095.0,2094.9,4.77421257]
[1617442713434,5.37945,2095.0,2094.9,4.91441844]
[1617442714433,5.37945,2095.0,2094.9,0.14020587]
[1617442715633,5.37945,2095.0,2094.8,0.14021699]
[1617442716232,6.32225,2095.0,2094.8,4.91476563]
[1617442716432,5.37945,2095.0,2094.8,4.91476563]
[1617442716632,5.37945,2095.0,2094.9,0.1402142]
[1617442717735,5.37945,2095.0,2094.8,0.14021693]
[1617442717934,5.37945,2095.0,2094.9,0.14022032]
[1617442718336,5.37945,2095.0,2094.8,0.14022331]
[1617442718538,5.37945,2095.0,2094.9,0.14022352]
[1617442718935,5.37945,2095.0,2094.7,0.14022256]
[1617442719535,5.37945,2095.0,2094.9,4.77922041]
[1617442719735,6.33265,2095.0,2094.9,4.77922041]
[1617442719935,5.37945,2095.0,2094.9,4.9194454]
[1617442721937,5.37945,2095.0,2094.6,4.77584297]
[1617442722841,2.90695,2094.7,2094.6,4.77584297]
[1617442723039,2.90695,2094.7,2094.5,4.77534574]
[1617442725240,2.90695,2094.7,2094.4,4.78242461]
[1617442728850,2.90695,2094.7,2094.3,4.79188037]
[1617442729951,2.90695,2094.7,2094.4,4.7928507]
[1617442730250,2.90695,2094.7,2094.3,4.79354404]
[1617442730655,2.90695,2094.7,2094.4,4.7927496]
[1617442730852,0.9415,2095.2,2094.4,4.7927496]
[1617442732755,2.90695,2094.5,2094.4,4.7927496]
[1617442732955,5.01615,2094.5,2094.4,4.7927496]
[1617442733556,5.01615,2094.5,2094.0,4.79047372]
[1617442733958,5.01615,2094.5,2094.1,4.7903832]
[1617442734858,2.90695,2094.2,2094.1,4.7903832]
[1617442736059,2.90695,2094.2,2094.0,5.85645945]
[1617442738159,2.90695,2094.2,2093.9,5.85708786]
[1617442738362,2.90695,2094.2,2094.1,4.79203607]
[1617442738761,2.90695,2094.2,2093.9,5.85708786]
[1617442739762,2.90695,2094.2,2094.1,4.79557737]
[1617442741064,2.90695,2094.2,2093.9,5.85708786]
[1617442741463,2.90695,2094.2,2094.0,5.86231336]
[1617442741763,2.90695,2094.2,2093.9,5.86171421]
[1617442742263,2.90695,2094.2,2094.1,4.79366936]
[1617442743262,2.90695,2094.2,2094.0,4.79244557]
[1617442743663,2.90695,2094.2,2094.1,4.79115906]
[1617442743962,2.90695,2094.2,2093.8,5.85726231]
[1617442743963,2.90695,2094.2,2094.0,4.79058707]
[1617442746971,2.90695,2094.2,2094.1,4.79127733]
[1617442748574,2.90695,2094.2,2094.1,5.86008712]
[1617442748773,2.90695,2094.2,2094.1,6.00032457]
[1617442750773,2.90695,2094.2,2094.1,0.14023745]
[1617442753678,4.47085,2094.2,2094.1,0.14023745]
[1617442755279,4.47085,2094.2,2094.0,0.1402452]
[1617442756984,4.47085,2094.2,2094.1,4.79648918]
[1617442757282,4.47085,2094.2,2094.0,0.1402452]
[1617442757583,4.47085,2094.2,2094.1,0.14024547]
[1617442758084,4.47085,2094.2,2094.0,6.00295515]
[1617442758283,4.47085,2094.2,2094.1,0.14024486]
[1617442759085,4.47085,2094.2,2094.1,4.93767126]
[1617442759287,4.47085,2094.2,2094.1,4.7974264]
[1617442759488,4.47085,2094.2,2094.1,0.14024451]
[1617442759786,4.47085,2094.2,2094.0,0.14024477]
[1617442760589,4.47085,2094.2,2094.1,4.80133764]
[1617442760792,4.47085,2094.2,2094.1,4.94158361]
[1617442763895,4.47085,2094.2,2094.1,0.14024597]
[1617442765195,4.47085,2094.2,2093.9,0.14026567]
[1617442765396,4.47085,2094.2,2093.9,4.94832527]
[1617442765595,4.47085,2094.2,2093.9,0.14026567]
[1617442767297,4.47085,2094.2,2093.8,0.14027478]
[1617442769099,2.90695,2093.9,2093.8,0.14027478]
[1617442770200,2.90695,2093.9,2093.8,6.01345617]
[1617442770703,2.90695,2093.9,2093.8,0.14027478]
[1617442771202,2.90695,2093.9,2093.6,0.14025491]
[1617442771601,2.90695,2093.9,2093.8,5.87484567]
[1617442772003,2.90695,2093.9,2093.8,6.01510326]
[1617442772806,2.90695,2093.9,2093.8,0.14025759]
[1617442773405,2.90695,2093.9,2093.6,0.14025359]
[1617442774106,2.90695,2093.9,2093.8,5.87292232]
[1617442774406,2.90695,2093.9,2093.8,6.01317747]
[1617442778411,2.90695,2093.9,2093.8,0.14025515]
[1617442778912,2.90695,2093.9,2093.7,8.03285129]
[1617442779212,2.90695,2093.9,2093.8,0.14024305]
[1617442779413,2.90695,2093.9,2093.8,8.17231663]